Cogmind - Beta 16 @@@ ROGUE MODE // 2025.11.13 @ 22:38:33 Player: Star Result: Destroyed by 55-3FA(R) with Subdweller Shrapnel Launcher Performance ------------- Evolutions (0) 0 Regions Visited (3) 600 Robots Destroyed (9) 45 Value Destroyed (242) 242 Prototype IDs (2) 40 Alien Tech Used (0) 0 Bonus (0) 0 TOTAL SCORE: 927 Bonus ------- None Cogmind --------- Core Integrity 0/250 Matter 260/300 Energy 144/160 System Corruption 1% Temperature Cool (0) Movement Hovering (116) Ox1 Location -10/Subcaves Parts ------- > --- POWER (1) -------- Light Nuclear Core > --- PROPULSION (2) --- Hover Unit Hover Unit > --- UTILITY (2) ------ Heat Sink Small Storage Unit > --- WEAPON (2) ------- Small Laser Small Laser > --- INVENTORY (8) ---- Hover Unit ECM Suite Grenade Launcher Peak State ------------ > --- POWER ------------ Light Nuclear Core > --- PROPULSION ------- Hover Unit Hover Unit > --- UTILITY ---------- Heat Sink Small Storage Unit > --- WEAPON ----------- Small Laser Small Laser > --- INVENTORY -------- Hover Unit Hover Unit Hover Unit ECM Suite Grenade Launcher [Rating: 9] Favorites ----------- Power Light Nuclear Core Engine Ion Engine Power Core Light Nuclear Core Propulsion Hover Unit Leg Aluminum Leg Hover Unit Hover Unit Utility Small Storage Unit Device Heat Sink Storage Small Storage Unit Weapon Small Laser Energy Gun Small Laser Ballistic Gun Light Assault Rifle Launcher Grenade Launcher Build | -11 -10 -10 -10 ------- Run | Yrd Mat Min Sub Slots Evolved . | . . . . Power . | . . . . Propulsion . | . . . . Utility . | . . . . Weapon . | . . . . Parts Attached 19 | 6 12 1 . Power 2 | 1 1 . . Engine 1 | 1 . . . Core 1 | . 1 . . Reactor . | . . . . Propulsion 9 | 2 6 1 . Treads . | . . . . Leg 3 | 2 1 . . Wheel . | . . . . Hover 6 | . 5 1 . Flight . | . . . . Utility 2 | 1 1 . . Device 1 | . 1 . . Storage 1 | 1 . . . Processor . | . . . . Hackware . | . . . . Protection . | . . . . Artifact . | . . . . Weapon 6 | 2 4 . . Energy Gun 4 | 1 3 . . Energy Cannon . | . . . . Ballistic Gun 1 | 1 . . . Ballistic Cannon . | . . . . Launcher 1 | . 1 . . Special Weapon . | . . . . Impact Weapon . | . . . . Slashing Weapon . | . . . . Piercing Weapon . | . . . . Special Melee Weapon . | . . . . Unidentified Prototypes . | . . . . Parts Lost 9 | . 7 2 . Power 1 | . 1 . . Propulsion 5 | . 3 2 . Utility . | . . . . Weapon 3 | . 3 . . Highest Loss Streak 3 | . 3 2 . To Critical Strikes . | . . . . Average Backups 4 | . 5 4 3 Power . | . . . . Propulsion 2 | . 3 2 1 Utility . | . . 1 1 Weapon 1 | . 1 1 1 Tool/Special . | . . . . Unused Backups 3 | . 1 . 2 Power . | . . . . Propulsion 2 | . 1 . 1 Utility 1 | . . . 1 Weapon . | . . . . Tool/Special . | . . . . Average Slot Usage (%) 84 | . 81 97 100 Engine 3 | . 4 . . Core 5 | . 3 14 14 Leg 6 | . 7 . . Hover 15 | . 13 25 28 Device 11 | . 10 14 14 Storage 14 | . 14 14 14 Energy Gun 26 | . 25 28 28 Ballistic Gun 1 | . 1 . . Peak Build Rating 9 | 6 9 9 9 Average Rating 6 | 4 6 8 9 On Entrance 6 | . 6 9 9 Avg Prop Armor Cover (%) . | . . . . Naked Turns . | . . . . Heaviest Build 14 | 12 14 13 13 Greatest Support 20 | 20 20 12 12 Greatest Overweight (x) 2 | 1 2 2 1 Average Overweight (x) . | . . 1 1 Largest Inventory Capacity 8 | 8 8 8 8 Average Capacity 7 | 7 8 8 8 Most Carried 8 | 2 8 5 3 Average Carried 4 | . 5 4 3 Final Capacity 8 | 8 8 8 8 Final Carried 5 | . 5 3 3 Class Distribution -------------------- 100% | Mutant Dominant Class ---------------- Mutant | -10/Materials Mutant | -10/Mines Mutant | -10/Subcaves Resources | -11 -10 -10 -10 ----------- Run | Yrd Mat Min Sub Matter Collected 374 | 194 180 . . Remotely . | . . . . Salvage Created 293 | . 293 . . Parts 18 | . 18 . . Haulers Intercepted . | . . . . Recyclers Shooed . | . . . . Parts Field Recycled . | . . . . Retrieved Matter . | . . . . Parts Self-Destructed . | . . . . Prevented . | . . . . Parts Restored . | . . . . Kills | -11 -10 -10 -10 ------- Run | Yrd Mat Min Sub Combat Hostiles Destroyed 8 | . 8 . . Guns 6 | . 6 . . AOE 2 | . 2 . . Classes Destroyed 3 | . 3 . . Watcher 1 | . 1 . . Swarmer 3 | . 3 . . Grunt 5 | . 5 . . Best Kill Streak 3 | . 3 . . Combat Bots Only 3 | . 3 . . Max Kills in Single Turn 2 | . 2 . . Gunslinging . | . . . . Exploded 2 | . 2 . . Melee . | . . . . Uniques/NPCs Destroyed . | . . . . Combat | -11 -10 -10 -10 -------- Run | Yrd Mat Min Sub Hostile Shots Fired 83 | . 71 10 2 Missed 24 | . 18 5 1 Hits 59 | . 53 5 1 Projectile 59 | . 53 5 1 AOE 2 | . . . 2 Damage Taken 985 | . 815 78 92 Core 265 | . 165 32 68 Absorbed by Shields . | . . . . Regen/Repaired (Parts) 89 | . 89 . . Core Remaining (%) 100 | 100 . . . Volleys Fired 34 | . 32 . 2 Largest 2 | . 2 . 2 Hottest 80 | . 80 . 80 Shots Fired 62 | . 58 . 4 Gun 60 | . 56 . 4 Cannon . | . . . . Launcher 2 | . 2 . . Special . | . . . . Kinetic 9 | . 9 . . Thermal 39 | . 35 . 4 Explosive 2 | . 2 . . Electromagnetic 12 | . 12 . . Robot Hit Streak 10 | . 10 . 5 Robot Miss Streak 2 | . 2 . . Penetration Max . | . . . . Secondary Targets . | . . . . Shots Hit Robots 45 | . 41 . 4 Core Hits 18 | . 17 . 1 Critical Kills . | . . . . Critical Parts Destroyed . | . . . . Critical Strikes . | . . . . Melee Attacks . | . . . . Impact . | . . . . Slashing . | . . . . Piercing . | . . . . Sneak Attacks . | . . . . Combat Hostiles . | . . . . Follow-up Attacks . | . . . . Damage Inflicted 613 | . 570 . 43 Guns 460 | . 417 . 43 Cannons . | . . . . Explosions 153 | . 153 . . Melee . | . . . . Ramming . | . . . . Kinetic 66 | . 66 . . Thermal 296 | . 253 . 43 Explosive 153 | . 153 . . Electromagnetic 98 | . 98 . . Impact . | . . . . Slashing . | . . . . Piercing . | . . . . Highest Corruption 1 | . 1 1 1 Average Corruption 1 | . 1 1 1 Corruption Purged . | . . . . Corruption Blocked . | . . . . Effects 2 | . . 2 . Energy Discharges 2 | . . 2 . Overload Shots . | . . . . Overflow Damage 11 | . 11 . . Projectiles . | . . . . Explosions 11 | . 11 . . Melee . | . . . . Knockbacks . | . . . . Impact . | . . . . Kinetic . | . . . . Secondary . | . . . . Self-Inflicted Damage 75 | . 75 . . Shots 2 | . 2 . . Rammed . | . . . . Targets Rammed . | . . . . Kicked . | . . . . Crushed . | . . . . Highest Temperature 236 | . 236 . . Average Temperature 100 | . 100 . . Received Heat Transfer 327 | . 309 18 . Siege Activations . | . . . . Martial Activations . | . . . . Shielding Activations . | . . . . Robots Disrupted . | . . . . Combat Hostiles . | . . . . Robots Corrupted . | . . . . Combat Hostiles . | . . . . Parts Fried . | . . . . Impact Corruptions . | . . . . Robots Melted . | . . . . Combat Hostiles . | . . . . Parts Melted . | . . . . Heat Transferred 700 | . 600 . 100 Parts Sabotaged . | . . . . Parts Stolen . | . . . . Parts Stripped . | . . . . Power Chain Reactions . | . . . . Alert | -11 -10 -10 -10 ------- Run | Yrd Mat Min Sub Maximum Alert Level . | . . . . Low Security (%) 100 | 100 100 100 . Level 1 . | . . . . Level 2 . | . . . . Level 3 . | . . . . Level 4 . | . . . . Level 5 . | . . . . High Security . | . . . . Max Security . | . . . . Peak Influence 102 | . 102 19 . Initial 19 | . . 19 . Average 23 | . 26 4 . Influence Increases 310 | . 310 . . Destroy 0b10 Robot/C 160 | . 160 . . Destroy 0b10 Robot/NC 5 | . 5 . . Destroy Leader 42 | . 42 . . Successful Hack 13 | . 13 . . Destroy Structure 15 | . 15 . . Partial Spotted 30 | . 30 . . Lose Combat Pursuer 45 | . 45 . . Influence Decreases 310 | . 258 52 . Entered New Map 33 | . . 33 . Time Decay 230 | . 211 19 . Lost Part 47 | . 47 . . Squads Dispatched 2 | . 2 . . Investigation . | . . . . Extermination . | . . . . Reinforcement 2 | . 2 . . Assault . | . . . . Garrison . | . . . . Intercept . | . . . . Searches Triggered . | . . . . Construction Impeded . | . . . . Haulers Reinforced . | . . . . Active Scanning Responses . | . . . . Cargo Convoy Interrupts . | . . . . Stealth | -11 -10 -10 -10 --------- Run | Yrd Mat Min Sub Distress Signals 1 | . 1 . . Communications Jammed . | . . . . Distress Signals . | . . . . Times Spotted 18 | . 15 2 1 Peak Tracking Total 3 | . 3 2 1 Tactical Retreats 2 | . 2 . . Traps | -11 -10 -10 -10 ------- Run | Yrd Mat Min Sub Traps Triggered 4 | . 4 . . Indirectly . | . . . . Trap Hack Attempts . | . . . . Triggered . | . . . . Disarmed . | . . . . Reprogrammed . | . . . . Reused . | . . . . Traps Extracted . | . . . . Installed . | . . . . Triggered . | . . . . Machines | -11 -10 -10 -10 ---------- Run | Yrd Mat Min Sub Machines Disabled . | . . . . Max in Single Turn . | . . . . Machines Repaired . | . . . . Machines Dismantled . | . . . . Machines Sabotaged . | . . . . Overloaded Fab Kills . | . . . . Hacking | -11 -10 -10 -10 --------- Run | Yrd Mat Min Sub Machines Accessed 8 | . 8 . . Terminals 6 | . 6 . . Fabricators . | . . . . Repair Stations 1 | . 1 . . Recycling Units 1 | . 1 . . Scanalyzers . | . . . . Garrison Access . | . . . . Total Hacks 18 | . 18 . . Successful 10 | . 10 . . Failed 8 | . 8 . . Catastrophic 1 | . 1 . . Database Lockouts . | . . . . Manual 9 | . 9 . . Terminals 12 | . 12 . . Fabricators . | . . . . Repair Stations 4 | . 4 . . Recycling Units 2 | . 2 . . Scanalyzers . | . . . . Garrison Access . | . . . . Terminal Hacks 1 | . 1 . . Prototype ID Bank 1 | . 1 . . Fabricator Hacks . | . . . . Repair Station Hacks 4 | . 4 . . Scan Component 2 | . 2 . . Repair 2 | . 2 . . Recycling Unit Hacks 1 | . 1 . . Report Inventory 1 | . 1 . . Scanalyzer . | . . . . Garrison Access Hacks . | . . . . Unauthorized Hacks 4 | . 4 . . Terminals 4 | . 4 . . Botnet 4 | . 4 . . Fabricators . | . . . . Repair Stations . | . . . . Recycling Units . | . . . . Scanalyzers . | . . . . Garrison Access . | . . . . Data Cores Recovered . | . . . . Used . | . . . . Hacking Detections 2 | . 2 . . Full Trace Events . | . . . . Feedback Events . | . . . . Feedback Blocked . | . . . . Robot Schematics Acquired . | . . . . Robots Built . | . . . . Authchips . | . . . . Time . | . . . . Total Robot Build Rating . | . . . . Part Schematics Acquired . | . . . . Parts Built . | . . . . Authchips . | . . . . Time . | . . . . Total Part Build Rating . | . . . . Part Studies Acquired . | . . . . Parts Repaired 2 | . 2 . . Time 64 | . 64 . . Parts Recycled . | . . . . Recycled Matter . | . . . . Retrieved Matter . | . . . . Retrieved Components . | . . . . Parts Scanalyzed . | . . . . Part Schematics Acquired . | . . . . Parts Damaged . | . . . . Bothacking | -11 -10 -10 -10 ------------ Run | Yrd Mat Min Sub Used RIF Installer . | . . . . Robots Hacked . | . . . . Non-combat . | . . . . Combat . | . . . . Robot Hacks Applied . | . . . . Relay Couplers Released . | . . . . Fabnet Peak Effective % . | . . . . Robots Rewired . | . . . . Allies Hacked . | . . . . Hacks Repelled . | . . . . Allies | -11 -10 -10 -10 -------- Run | Yrd Mat Min Sub Total Allies . | . . . . Largest Group . | . . . . Highest-Rated Group . | . . . . Highest-Rated Ally . | . . . . Total Orders . | . . . . Ally Attacks . | . . . . Total Damage . | . . . . Kills . | . . . . Allies Corrupted . | . . . . Allies Melted . | . . . . Intel | -11 -10 -10 -10 ------- Run | Yrd Mat Min Sub Active Infowar (turns) . | . . . . Robot Analysis Total . | . . . . Derelict Logs Recovered . | . . . . Drone Launches . | . . . . Drone Recoveries . | . . . . Exploration | -11 -10 -10 -10 ------------- Run | Yrd Mat Min Sub Turns Passed 1391 | 66 1130 117 78 Spaces Moved 922 | 38 754 83 47 Core 5 | 5 . . . Treads . | . . . . Legs 213 | 33 180 . . Wheels . | . . . . Hover 704 | . 574 83 47 Flight . | . . . . Fastest Speed 50 | 50 116 116 116 Average Speed 119 | 114 120 118 116 Slowest Speed 190 | 120 190 180 116 Overloaded Moves . | . . . . Propulsion Burnouts . | . . . . Robots Hopped . | . . . . Potential Cave-ins . | . . . . Cave-ins Triggered . | . . . . Exploration Rate (%) 29 | 4 91 18 6 Regions Visited 3 Branch Regions 2 Pre-discovered Areas . | . . . . Known Exits Taken . | . . . . Unknown Exits Taken 3 | 1 1 1 . Scrap Searched . | . . . . Spaces Dug . | . . . . Terrain Destroyed 21 | . 21 . . Melee . | . . . . Projectile . | . . . . AOE 21 | . 21 . . Terrain Rammed . | . . . . Walls Destroyed . | . . . . Machines Disabled . | . . . . Actions | -11 -10 -10 -10 --------- Run | Yrd Mat Min Sub Total 1149 | 60 919 101 69 Wait 146 | 11 98 17 20 Move 919 | 37 753 82 47 Hop . | . . . . Pick Up 24 | 6 18 . . Fast Attach . | . . . . Attach 18 | 6 10 2 . Detach . | . . . . Swap 5 | . 5 . . Drop 3 | . 3 . . Fire 34 | . 32 . 2 Melee . | . . . . Ram . | . . . . Kick . | . . . . Crush . | . . . . Escape Stasis . | . . . . Rewire . | . . . . Trap . | . . . . Miscellaneous . | . . . . Route ------- -11/Scrapyard -10/Materials (discovered 4 exits: [*Mat x2] / [*Min x2]) -10/Mines (discovered 2 exits: [*Mat] / [*Sub]) -10/Subcaves History --------- Turn | Location | Event 5 | -11/Scrapyard | Discovered new exit (range 16) 67 | -11/Scrapyard | Entered Materials 303 | -10/Materials | Build established: Mutant 444 | -10/Materials | Discovered new exit (range 8) 459 | -10/Materials | Discovered new exit (range 15) 522 | -10/Materials | Discovered new exit (range 12) 727 | -10/Materials | Discovered new exit (range 6) 913 | -10/Materials | Core integrity fell below 50% 931 | -10/Materials | Lost 3 parts (1n2w) 1118 | -10/Materials | Repaired Lgt. Nuclear Core 1146 | -10/Materials | Repaired Sml. Laser 1197 | -10/Materials | Entered Mines 1240 | -10/Mines | Discovered new exit (range 6) 1303 | -10/Mines | Discovered new exit (range 10) 1314 | -10/Mines | Entered Subcaves 1315 | -10/Subcaves | Approached by a straggling Scientist 1392 | -10/Subcaves | Destroyed by 55-3FA(R) with Subdweller Shrapnel Launcher Last Messages --------------- 01248_ K-01 Serf collects debris. 01269_ Hover Unit destroyed. 01286_ System corrupted: Energy discharge (-62). 01298_ T-07 Excavator is excavating. 01302_ U-05 Engineer lays Concrete. 01303_ EXIT=FOUND 01304_ U-05 Engineer lays Concrete. 01306_ T-07 Excavator is excavating. 01307_ U-05 Engineer lays Concrete. 01310_ T-07 Excavator is excavating. 01313_ U-05 Engineer builds a Door. LOCATION=UNKNOWN AMBIENT_HEAT=-10 GOAL=ESCAPE 01315_ NM-KGC(c): "Thank the algorithms! I was beginning to lose hope I'd never make it past all the Subs lurking out here." 01319_ NM-KGC(c): "Hey, let me tag along and I can get us both out of this nasty situation. At least I think I can... The group I got separated from was talking about a shortcut back to the UFD." NM-KGC(c): "I think it's somewhere west of here" Map ----- +----------------------------------------------------+ | ?????????????????????????????????????????????????? | | ?????????????????????????????????????????????????? | | ?????????????????????????????????????????????????? | | ?????????????????????????????????????????????????? | | ?????????????????????????????????????????????????? | | ?????????????????????????????????????????????????? | | ?????????????????????????????????????????????????? | | ?????????????????????????????????????????????????? | | ?????????????????????????????????????????????????? | | ?????????????????????????????????????????????????? | | ?????????????????????????????????????????????????? | | ?????????????????????????????????????????????????? | | ?????????????????????????????????????????????????? | | ?????????????????????????????????????????????????? | | ?????????????????????????????????????????????????? | | ?????????????????????????????????????????????????? | | ?????????????????????????????????? #????????????? | | ????????????????????????????????? #????????????? | | ????????????????????????????????? #????????????? | | ?????????????????????????####???# #?????????????? | | ????????????????????????? ##?# ##????????????? | | ????????????????????????? ## #????????????? | | ?????????????????????????# #?????????????? | | ?????????????????????????# #??????????????? | | ??????????????????????####R #???????????????? | | ?????????????????????## @ ## #???????????????? | | ????????????????????## ;# #???????????????? | | ????????????????????# ;; #????????????????? | | ????????????????????# #?????????????????? | | ????????????????????# ;; c;#?????????????????? | | ????????????????????# #;;; ##????????????????? | | ???????????????????## ## ;; #????????????????? | | ???????????????????# ###### #????????????????? | | ???????????????????## # # ##????????????????? | | ????????????????????# #?????????????????? | | ???????????????????# ## # ##????????????????? | | ??????????????????# ###### #????????????????? | | ?????????????????# #### # ##????????????????? | | ?????????????????# #???# #????????????????? | | ?????????????????###????# #????????????????? | | ????????????????????????## # ###????????????????? | | ????????????????????????# ###??????????????????? | | ????????????????????????## #????????????????????? | | ????????????????????????# #????????????????????? | | ????????????????????????# ###??????????????????? | | ????????????????????????# #??????????????????? | | ????????????????????????## #??????????????????? | | ?????????????????????????### #??????????????????? | | ???????????????????????????# #??????????????????? | | ???????????????????????????# #??????????????????? | +----------------------------------------------------+ Best States ------------- Heat Dissipation 35 Energy Generation 14 Energy Capacity 250 Matter Stores 300 Matter Capacity 300 Sight Range 16 Terrain Scan Density 10 Evasion (%) 55 Item Schematics ----------------- None Robot Schematics ------------------ None Fabricated ------------ Nothing Repaired ---------- Lgt. Nuclear Core | 38% | -10/Materials Sml. Laser | 17% | -10/Materials Studied --------- None Alien Tech Used ----------------- None Achievements -------------- Let's See Who's Tougher Challenges ------------ None Game ------ Seed BoreArmageddonStabilizer Manual? 0 Play Time 00:15:11 Cumulative 9.9 hours Start 2025.11.13 @ 22:22:42 End 2025.11.13 @ 22:38:33 Sessions 1 Manual Loads 0 Difficulty Rogue Special Mode None Game No. 30 Rogue 30 Adventurer 0 Explorer 0 Win Type - Total 0 Types 0/0/0/0/0/0/0/0/0/0 Lore% 11 Gallery% 15 Achievement% 13 Wizard Run 0 Options --------- Layout 0 ASCII 0 Keyboard 0 Movement Mouse Keybinds 0 Fullscreen 2 Font 24/Smallcaps Map View 76x50 Zoom Use 10% Tactical HUD 1 Map Filters NONE Filters NONE Steam 1 RUN: b26b69b6-e792-4a9b-b447-b1b344f4ae72